bitfinex/quotes_BTCUSD_20250614
["timestamp","ask_amount","ask_price","bid_price","bid_amount"]
[1749923223388,0.09268203,104710.0,104700.0,0.50985944]
[1749923223587,0.09268203,104710.0,104700.0,0.50985889]
[1749923223800,0.09268203,104710.0,104700.0,0.50985887]
[1749923223801,0.09268202,104710.0,104700.0,0.50985887]
[1749923224009,0.09268202,104710.0,104700.0,0.49193691]
[1749923224220,0.09268202,104710.0,104700.0,0.50985887]
[1749923224435,0.08372104,104710.0,104700.0,0.49193691]
[1749923224639,0.09268202,104710.0,104700.0,0.49193691]
[1749923224844,0.08372104,104710.0,104700.0,0.49193691]
[1749923225053,0.00895994,104710.0,104700.0,0.50985618]
[1749923225258,0.01850974,104710.0,104700.0,0.49193691]
[1749923225472,0.01850974,104710.0,104700.0,0.50985653]
[1749923225725,0.01850974,104710.0,104700.0,0.50985657]
[1749923225910,0.01850984,104710.0,104700.0,0.50985643]
[1749923226125,0.0579473,104710.0,104700.0,0.50985643]
[1749923226335,0.0185099,104710.0,104700.0,0.50985643]
[1749923226541,0.02805978,104710.0,104700.0,0.50985643]
[1749923226745,0.02805978,104710.0,104700.0,0.50985666]
[1749923227015,0.02805957,104710.0,104700.0,0.50985666]
[1749923227245,0.02805902,104710.0,104700.0,0.57305666]
[1749923227449,0.02805902,104710.0,104700.0,0.57305601]
[1749923227664,0.02805893,104710.0,104700.0,0.57305601]
[1749923227871,0.03760666,104710.0,104700.0,0.57305601]
[1749923228080,0.01850702,104710.0,104700.0,0.57305601]
[1749923228300,0.02288607,104720.0,104710.0,0.21965317]
[1749923228545,0.4450404,104730.0,104720.0,0.21008338]
[1749923228546,0.03915152,104730.0,104720.0,0.21008338]
[1749923228760,0.02864334,104730.0,104720.0,0.42606446]
[1749923228980,0.03759927,104730.0,104720.0,0.40815201]
[1749923229197,0.32844607,104740.0,104720.0,0.43561236]
[1749923229411,0.01909608,104730.0,104720.0,0.44516094]
[1749923230034,0.04774033,104730.0,104720.0,0.39446395]
[1749923230237,0.04019197,104730.0,104720.0,0.39446395]
[1749923230670,0.06967784,104730.0,104720.0,0.39446398]
[1749923231346,0.07922602,104730.0,104720.0,0.39446397]
[1749923231796,0.07922602,104730.0,104720.0,0.37655201]
[1749923232012,0.07922602,104730.0,104720.0,0.39446396]
[1749923232255,0.08122602,104730.0,104720.0,0.37655201]
[1749923232475,0.08122602,104730.0,104720.0,0.39446396]
[1749923232688,0.08122602,104730.0,104720.0,0.47279377]
[1749923232902,0.09077484,104730.0,104720.0,0.4811571]
[1749923233114,0.09077484,104730.0,104720.0,0.49070582]
[1749923233321,0.09077484,104730.0,104720.0,0.47279386]
[1749923233773,0.09077484,104730.0,104720.0,0.49070582]
[1749923233991,0.09077484,104730.0,104720.0,0.50025445]
[1749923234631,0.09077484,104730.0,104720.0,0.50025203]
[1749923235518,0.09077484,104730.0,104720.0,0.50025191]
[1749923235723,0.09077484,104730.0,104720.0,0.50025187]
[1749923236178,0.09077484,104730.0,104720.0,0.48234249]
[1749923236394,0.09077484,104730.0,104720.0,0.50025201]
[1749923236601,0.08122648,104730.0,104720.0,0.48234249]
[1749923236805,0.08122648,104730.0,104720.0,0.50025201]
[1749923237005,0.08122648,104730.0,104720.0,0.48234249]
[1749923237438,0.08122648,104730.0,104720.0,0.50025201]
[1749923237869,0.08122648,104730.0,104720.0,0.48234249]
[1749923238089,0.08122648,104730.0,104720.0,0.50019977]
[1749923238980,0.28174208,104730.0,104720.0,0.49061114]
[1749923239190,0.30519418,104730.0,104720.0,0.49061114]
[1749923239610,0.30519418,104730.0,104720.0,0.48106246]
[1749923239821,0.2956461,104730.0,104720.0,0.48106246]
[1749923241348,0.2626461,104730.0,104720.0,0.48106246]
[1749923243137,0.07167849,104730.0,104720.0,0.49061109]
[1749923243341,0.07167849,104730.0,104720.0,0.48106237]
[1749923243552,0.35569822,104740.0,104720.0,0.48106237]
[1749923243761,0.32388352,104740.0,104720.0,0.48106237]
[1749923243971,0.0095479,104730.0,104720.0,0.47275386]
[1749923244188,0.01909608,104730.0,104720.0,0.50015978]
[1749923244404,0.20051514,104730.0,104720.0,0.51356242]
[1749923244585,0.01909608,104730.0,104720.0,0.52311105]
[1749923244829,0.00954763,104730.0,104720.0,0.52311105]
[1749923245039,0.01909553,104730.0,104720.0,0.55371105]
[1749923245263,0.20906319,104740.0,104720.0,0.56932808]
[1749923245485,0.5073501,104740.0,104730.0,0.22915921]
[1749923245694,0.70784646,104740.0,104730.0,0.26996877]
[1749923245905,0.69829965,104740.0,104730.0,0.26996895]
[1749923246110,0.69829965,104740.0,104730.0,0.27951685]
[1749923246320,0.50935064,104740.0,104730.0,0.28906457]
[1749923246530,0.7078471,104740.0,104730.0,0.27951685]
[1749923246753,0.6688871,104740.0,104730.0,0.27951685]
[1749923247600,0.6688871,104740.0,104730.0,0.28906466]
[1749923248017,0.6688871,104740.0,104730.0,0.27120738]
[1749923248239,0.47793809,104740.0,104730.0,0.27120674]
[1749923248442,0.46839064,104740.0,104730.0,0.27120674]
[1749923249084,0.45884284,104740.0,104730.0,0.27120674]
[1749923249284,0.4683901,104740.0,104730.0,0.27120674]
[1749923249492,0.42115231,104740.0,104730.0,0.23870674]
[1749923249698,0.40964656,104740.0,104730.0,0.27120674]
[1749923249913,0.4000993,104740.0,104730.0,0.27120674]
[1749923250121,0.41919373,104740.0,104730.0,0.27120674]
[1749923250783,0.40964647,104740.0,104730.0,0.27120674]
[1749923250993,0.3810055,104740.0,104730.0,0.3980485]
[1749923251208,0.0410055,104740.0,104730.0,0.3980485]
[1749923251664,0.05055222,104740.0,104730.0,0.3980485]
[1749923252092,0.05055222,104740.0,104730.0,0.5549285]
[1749923252297,0.0410055,104740.0,104730.0,0.5549285]
[1749923252515,0.05055222,104740.0,104730.0,0.5549285]
[1749923252738,0.04855222,104740.0,104730.0,0.5549285]
[1749923253172,0.04855222,104740.0,104730.0,0.57277744]
[1749923253387,0.04955222,104740.0,104730.0,0.57277744]
[1749923253595,0.04855222,104740.0,104730.0,0.57277744]
[1749923253772,0.04955222,104740.0,104730.0,0.5559285]
[1749923254027,0.04955222,104740.0,104730.0,0.57377738]
[1749923254236,0.04855222,104740.0,104730.0,0.57377738]
[1749923254900,0.04855222,104740.0,104730.0,0.54317738]
[1749923255555,0.05809903,104740.0,104730.0,0.54317738]
[1749923255770,0.05809903,104740.0,104730.0,0.54319015]
[1749923256422,0.04855222,104740.0,104730.0,0.54319015]
[1749923256904,0.05809912,104740.0,104730.0,0.54319015]
[1749923257319,0.05809903,104740.0,104730.0,0.54319015]
[1749923257524,0.05809903,104740.0,104730.0,0.54319054]
[1749923258195,0.05809903,104740.0,104730.0,0.5253285]
[1749923258406,0.05809903,104740.0,104730.0,0.54321394]
[1749923259273,0.06764593,104740.0,104730.0,0.5253285]
[1749923259486,0.04855222,104740.0,104730.0,0.54321394]
[1749923259691,0.04855222,104740.0,104730.0,0.5253285]
[1749923259903,0.05809903,104740.0,104730.0,0.54321394]
[1749923260325,0.04855222,104740.0,104730.0,0.54321394]
[1749923260760,0.04855222,104740.0,104730.0,0.5253285]
[1749923260976,0.04855222,104740.0,104730.0,0.54321394]
[1749923262074,0.04855222,104740.0,104730.0,0.5253285]
[1749923262281,0.04855222,104740.0,104730.0,0.54321394]
[1749923262908,0.04855222,104740.0,104730.0,0.54321395]
[1749923263132,0.05809903,104740.0,104730.0,0.54321395]
[1749923263603,0.05809903,104740.0,104730.0,0.5253285]
[1749923264014,0.05809903,104740.0,104730.0,0.54321395]
[1749923265091,0.05809903,104740.0,104730.0,0.54321383]
[1749923265496,0.05809903,104740.0,104730.0,0.54321384]
[1749923265723,0.05809903,104740.0,104730.0,0.5253285]
[1749923265944,0.05809903,104740.0,104730.0,0.54321383]
[1749923266410,0.05809903,104740.0,104730.0,0.5253285]
[1749923266622,0.04855222,104740.0,104730.0,0.54321384]
[1749923266847,0.05809912,104740.0,104730.0,0.54321383]
[1749923268129,0.05809912,104740.0,104730.0,0.54321746]
[1749923268935,0.05809912,104740.0,104730.0,0.5253285]
[1749923269361,0.05809912,104740.0,104730.0,0.54321746]
[1749923271255,0.04855222,104740.0,104730.0,0.54321746]
[1749923271456,0.05809903,104740.0,104730.0,0.5253285]
[1749923271664,0.05809903,104740.0,104730.0,0.54321746]
[1749923272343,0.05809903,104740.0,104730.0,0.54321742]
[1749923272582,0.05809903,104740.0,104730.0,0.54321741]
[1749923273073,0.05809903,104740.0,104730.0,0.54321743]
[1749923273354,0.05809903,104740.0,104730.0,0.54321744]
[1749923273582,0.05809903,104740.0,104730.0,0.5253285]
[1749923274032,0.0390055,104740.0,104730.0,0.5253285]
[1749923274249,0.04855222,104740.0,104730.0,0.54321744]
[1749923274455,0.00954672,104740.0,104730.0,0.54321743]
[1749923274711,0.00954672,104740.0,104730.0,0.5253285]
[1749923274924,0.00954672,104740.0,104730.0,0.54321742]
[1749923275134,0.00954672,104740.0,104730.0,0.5253285]
[1749923275348,0.73884439,104750.0,104740.0,0.21959053]
[1749923275556,0.77065948,104750.0,104740.0,0.33372121]
[1749923276418,0.77065944,104750.0,104740.0,0.33372113]
[1749923276627,0.77165977,104750.0,104740.0,0.33372113]
[1749923276834,0.77165976,104750.0,104740.0,0.33372177]
[1749923277049,0.76471502,104750.0,104740.0,0.31583229]
[1749923277326,0.80348711,104750.0,104740.0,0.33372177]
[1749923277528,0.81243185,104750.0,104740.0,0.33372177]
[1749923277736,0.81243185,104750.0,104740.0,0.33372178]
[1749923278366,0.81243185,104750.0,104740.0,0.31583229]
[1749923278577,0.81243316,104750.0,104740.0,0.33372439]
[1749923278993,0.80348711,104750.0,104740.0,0.33372436]
[1749923279199,0.81243314,104750.0,104740.0,0.29673822]
[1749923279404,0.81243642,104750.0,104740.0,0.30628557]
[1749923279679,0.81243643,104750.0,104740.0,0.33373137]
[1749923280102,0.81243642,104750.0,104740.0,0.33373137]
[1749923280305,0.81243642,104750.0,104740.0,0.34327845]
[1749923280508,0.81020322,104750.0,104740.0,0.34327845]
[1749923280686,0.80348711,104750.0,104740.0,0.32537982]
[1749923281117,0.81244192,104750.0,104740.0,0.32537982]
[1749923281326,0.81244479,104750.0,104740.0,0.34329518]
[1749923281739,0.81916305,104750.0,104740.0,0.33492681]
[1749923281948,0.81916305,104750.0,104740.0,0.35284217]
[1749923282171,0.81020537,104750.0,104740.0,0.35284217]
[1749923282377,0.81916301,104750.0,104740.0,0.35284209]
[1749923282582,0.81916298,104750.0,104740.0,0.33492681]
[1749923282789,0.81916126,104750.0,104740.0,0.35284013]
[1749923283655,0.81020443,104750.0,104740.0,0.33492681]
[1749923283864,0.81916086,104750.0,104740.0,0.35283967]
[1749923284274,0.81020443,104750.0,104740.0,0.33492681]
[1749923284753,0.81916086,104750.0,104740.0,0.35283967]
[1749923284968,0.81020443,104750.0,104740.0,0.35283967]
[1749923285396,0.81244354,104750.0,104740.0,0.35283967]
[1749923285621,0.58125442,104750.0,104740.0,0.35283901]
[1749923285852,0.6064743,104750.0,104740.0,0.38613876]
[1749923286093,0.58066463,104750.0,104740.0,0.38613857]
[1749923286328,0.25021023,104750.0,104740.0,0.41693797]
[1749923286575,0.2082477,104750.0,104740.0,0.41693776]
[1749923286825,0.2177936,104750.0,104740.0,0.39902617]
[1749923287064,0.20824764,104750.0,104740.0,0.41693764]
[1749923287288,0.21779345,104750.0,104740.0,0.41693765]
[1749923287528,0.22733905,104750.0,104740.0,0.41693765]
[1749923287777,0.20883771,104750.0,104740.0,0.41693688]
[1749923287931,0.21779306,104750.0,104740.0,0.41693688]
[1749923288169,0.20824725,104750.0,104740.0,0.41693688]
[1749923288566,0.2082465,104750.0,104740.0,0.41693554]
[1749923288773,0.2082465,104750.0,104740.0,0.39902617]
[1749923288950,0.20724642,104750.0,104740.0,0.41693522]
[1749923289152,0.1962919,104750.0,104740.0,0.41693546]
[1749923289414,0.1962919,104750.0,104740.0,0.41693553]
[1749923289553,0.20524659,104750.0,104740.0,0.41693555]
[1749923289754,0.1962919,104750.0,104740.0,0.39902617]
[1749923289965,0.20524659,104750.0,104740.0,0.41693556]
[1749923290180,0.1962919,104750.0,104740.0,0.41693556]
[1749923290624,0.20524659,104750.0,104740.0,0.41693556]
[1749923291675,0.1962919,104750.0,104740.0,0.41693556]
[1749923291882,0.20524659,104750.0,104740.0,0.39902617]
[1749923292089,0.20524659,104750.0,104740.0,0.41693556]
[1749923292304,0.1962919,104750.0,104740.0,0.41693556]
[1749923292545,0.1962919,104750.0,104740.0,0.39902617]
[1749923292955,0.1962919,104750.0,104740.0,0.40102617]
[1749923293387,0.20524659,104750.0,104740.0,0.40102617]
[1749923293586,0.1962919,104750.0,104740.0,0.40102617]
[1749923293803,0.2052466,104750.0,104740.0,0.41893557]
[1749923294020,0.2052466,104750.0,104740.0,0.54693557]
[1749923294231,0.1962919,104750.0,104740.0,0.52902617]
[1749923294447,0.20524662,104750.0,104740.0,0.52902617]
[1749923294676,0.20524662,104750.0,104740.0,0.54693562]
[1749923295173,0.20524843,104750.0,104740.0,0.52902617]
[1749923295878,0.1962919,104750.0,104740.0,0.52902617]
[1749923296105,0.20524843,104750.0,104740.0,0.52902617]
[1749923296580,0.21479414,104750.0,104740.0,0.54693903]
[1749923296806,0.45731825,104750.0,104740.0,0.30073812]
[1749923297023,0.29668773,104750.0,104740.0,0.49454656]
[1749923297250,0.28773041,104750.0,104740.0,0.49454681]
[1749923297531,0.30623462,104750.0,104740.0,0.49454755]
[1749923297753,0.49716057,104750.0,104740.0,0.5040848]
[1749923298413,0.30622979,104750.0,104740.0,0.5040848]
[1749923298638,0.30622979,104750.0,104740.0,0.51363161]
[1749923299299,0.26638326,104750.0,104740.0,0.4957259]
[1749923299506,0.26638326,104750.0,104740.0,0.51363161]
[1749923299711,0.26638326,104750.0,104740.0,0.35683161]
[1749923299928,0.45731404,104750.0,104740.0,0.5040848]
[1749923300178,0.44836119,104750.0,104740.0,0.5040848]
[1749923300391,0.46686057,104750.0,104740.0,0.5040848]
[1749923300602,0.45790772,104750.0,104740.0,0.5040848]
[1749923301051,0.46686057,104750.0,104740.0,0.48617909]
[1749923301263,0.46686057,104750.0,104740.0,0.5040848]
[1749923301479,0.45790772,104750.0,104740.0,0.48617909]
[1749923301697,0.48800772,104750.0,104740.0,0.5040848]
[1749923301902,0.49696057,104750.0,104740.0,0.5040848]
[1749923302088,0.48800772,104750.0,104740.0,0.5040848]
[1749923302297,0.46686057,104750.0,104740.0,0.48617909]
[1749923302505,0.46686057,104750.0,104740.0,0.5040848]
[1749923302774,0.29881827,104750.0,104740.0,0.5040848]
[1749923302982,0.27592979,104750.0,104740.0,0.5040848]
[1749923303209,0.27592979,104750.0,104740.0,0.48617909]
[1749923303420,0.27592977,104750.0,104740.0,0.50408475]
[1749923303832,0.27592977,104750.0,104740.0,0.50408474]
[1749923304257,0.45790772,104750.0,104740.0,0.48617909]
[1749923304462,0.45790772,104750.0,104740.0,0.50408473]
[1749923304671,0.46686054,104750.0,104740.0,0.50408473]
[1749923305082,0.48975019,104750.0,104740.0,0.50408474]
[1749923305288,0.46686054,104750.0,104740.0,0.48617909]
[1749923305494,0.48975023,104750.0,104740.0,0.49453787]
[1749923305904,0.48975023,104750.0,104740.0,0.50408477]
[1749923306109,0.48975023,104750.0,104740.0,0.47663219]
[1749923306519,0.48020433,104750.0,104740.0,0.49453787]
[1749923307552,0.47125149,104750.0,104740.0,0.48499088]
[1749923307994,0.48020433,104750.0,104740.0,0.49453787]
[1749923308425,0.48020433,104750.0,104740.0,0.47663219]
[1749923308837,0.32268452,104750.0,104740.0,0.47663219]
[1749923309044,0.29979485,104750.0,104740.0,0.49453787]
[1749923309692,0.29084201,104750.0,104740.0,0.49453787]
[1749923309894,0.10655022,104750.0,104740.0,0.49453787]
[1749923310523,0.11668999,104750.0,104740.0,0.4670852]
[1749923310729,0.12564283,104750.0,104740.0,0.48499088]
[1749923310937,0.11668999,104750.0,104740.0,0.48499088]
[1749923311163,0.47835022,104750.0,104740.0,0.02190568]
[1749923311375,0.5079547,104750.0,104740.0,0.0219065]
[1749923311590,0.50795577,104750.0,104740.0,0.021907]
[1749923311814,0.50124079,104750.0,104740.0,0.021907]
[1749923312029,0.50795615,104750.0,104740.0,0.02190755]
[1749923312260,0.50795616,104750.0,104740.0,0.01990756]
[1749923312469,0.50895616,104750.0,104740.0,0.01990756]
[1749923312915,0.53424083,104750.0,104740.0,0.0199172]
[1749923313127,0.01909435,104740.0,104730.0,0.39550634]
[1749923313335,0.02805295,104740.0,104730.0,0.4917481]
[1749923313507,0.02805295,104740.0,104730.0,0.5096653]
[1749923313721,0.02805295,104740.0,104730.0,0.4917481]
[1749923313932,0.02805295,104740.0,104730.0,0.50966531]
[1749923314141,0.01909435,104740.0,104730.0,0.5096653]
[1749923314345,0.01909435,104740.0,104730.0,0.4917481]
[1749923314563,0.02864152,104740.0,104730.0,0.50963204]
[1749923314773,0.02864152,104740.0,104730.0,0.4917481]
[1749923314980,0.02864152,104740.0,104730.0,0.50963204]
[1749923315236,0.22913725,104740.0,104730.0,0.49053642]
[1749923315457,0.22913725,104740.0,104730.0,0.50008432]
[1749923315670,0.22913725,104740.0,104730.0,0.50963213]
[1749923315925,0.21959053,104740.0,104730.0,0.49053642]
[1749923316145,0.25159053,104740.0,104730.0,0.47265248]
[1749923316388,0.25159053,104740.0,104730.0,0.49053642]
[1749923317376,0.21959053,104740.0,104730.0,0.49053642]
[1749923317580,0.21959053,104740.0,104730.0,0.50008432]
[1749923318063,0.57797778,104750.0,104730.0,0.50008432]
[1749923318274,0.19094901,104740.0,104730.0,0.50008432]
[1749923318483,0.20049591,104740.0,104730.0,0.50008432]
[1749923319248,0.20049591,104740.0,104730.0,0.48220038]
[1749923319823,0.20049591,104740.0,104730.0,0.50963213]
[1749923320111,0.20049591,104740.0,104730.0,0.49174819]
[1749923320318,0.20049591,104740.0,104730.0,0.48220038]
[1749923320522,0.20049591,104740.0,104730.0,0.47265248]
[1749923320731,0.20049591,104740.0,104730.0,0.49053642]
[1749923320937,0.20049591,104740.0,104730.0,0.50008432]
[1749923321150,0.20049591,104740.0,104730.0,0.50963213]
[1749923321362,0.02864152,104740.0,104730.0,0.49174773]
[1749923321782,0.02864152,104740.0,104730.0,0.50963167]
[1749923321985,0.02864152,104740.0,104730.0,0.49174773]
[1749923322192,0.02864152,104740.0,104730.0,0.50963167]
[1749923322399,0.02864133,104740.0,104730.0,0.49174773]
[1749923322827,0.03818868,104740.0,104730.0,0.50963167]
[1749923323039,0.03818868,104740.0,104730.0,0.49174773]
[1749923323285,0.03818868,104740.0,104730.0,0.50963167]
[1749923323897,0.03818868,104740.0,104730.0,0.49174773]
[1749923324084,0.03818868,104740.0,104730.0,0.50963167]
[1749923324406,0.03818868,104740.0,104730.0,0.49174773]
[1749923324613,0.03818868,104740.0,104730.0,0.50963167]
[1749923324819,0.03818868,104740.0,104730.0,0.49174773]
[1749923325263,0.03818868,104740.0,104730.0,0.50963154]
[1749923325464,0.03818868,104740.0,104730.0,0.49174773]
[1749923326310,0.03818868,104740.0,104730.0,0.50963167]
[1749923326532,0.22913769,104740.0,104730.0,0.49053614]
[1749923327343,0.03818868,104740.0,104730.0,0.50008386]
[1749923327546,0.04713065,104740.0,104730.0,0.50008386]
[1749923327746,0.04714728,104740.0,104730.0,0.50011713]
[1749923328241,0.03818868,104740.0,104730.0,0.50011713]
[1749923328455,0.04714728,104740.0,104730.0,0.50011713]
[1749923328662,0.03818868,104740.0,104730.0,0.50011713]
[1749923328879,0.04714728,104740.0,104730.0,0.48219992]
[1749923329097,0.03818868,104740.0,104730.0,0.48219992]
[1749923329324,0.02864343,104730.0,104720.0,0.23073429]
[1749923329526,0.03819161,104730.0,104720.0,0.43409828]
[1749923329727,0.03819161,104730.0,104720.0,0.416181]
[1749923329932,0.03819161,104730.0,104720.0,0.43409837]
[1749923330139,0.04715029,104730.0,104720.0,0.43409837]
[1749923330345,0.03760202,104730.0,104720.0,0.43409835]
[1749923330620,0.02864334,104730.0,104720.0,0.47049835]
[1749923330838,0.03760201,104730.0,104720.0,0.47049835]
[1749923331958,0.25096308,104740.0,104730.0,0.28391149]
[1749923332191,0.26051034,104740.0,104730.0,0.26942893]
[1749923332435,0.26946892,104740.0,104730.0,0.25151158]
[1749923332658,0.26946892,104740.0,104730.0,0.26942874]
[1749923332923,0.26051034,104740.0,104730.0,0.23752883]
[1749923333114,0.26946892,104740.0,104730.0,0.23752883]
[1749923333336,0.26051034,104740.0,104730.0,0.23752883]
[1749923333554,0.22854892,104740.0,104730.0,0.23752883]
[1749923334005,0.22854892,104740.0,104730.0,0.22798084]
[1749923334275,0.22854892,104740.0,104730.0,0.21006368]
[1749923334517,0.21004344,104740.0,104730.0,0.22798084]
[1749923334739,0.21900202,104740.0,104730.0,0.22798085]
[1749923334965,0.21004344,104740.0,104730.0,0.22798085]
[1749923335185,0.21004344,104740.0,104730.0,0.21006368]
[1749923335402,0.21004344,104740.0,104730.0,0.22798099]
[1749923335626,0.21900209,104740.0,104730.0,0.22798099]
[1749923335854,0.21004344,104740.0,104730.0,0.21006368]
[1749923336073,0.21900209,104740.0,104730.0,0.22798099]
[1749923336687,0.21900209,104740.0,104730.0,0.21843291]
[1749923336890,0.21004344,104740.0,104730.0,0.21006387]
[1749923337102,0.21900211,104740.0,104730.0,0.23752939]
[1749923337315,0.21900211,104740.0,104730.0,0.21961205]
[1749923337541,0.20945494,104740.0,104730.0,0.23752939]
[1749923337935,0.19990767,104740.0,104730.0,0.21961205]
[1749923338206,0.21006368,104730.0,104720.0,0.20053475]
[1749923338425,0.22857059,104730.0,104720.0,0.39435085]
[1749923338635,0.19098548,104720.0,104710.0,0.24270345]
[1749923338841,0.21008329,104720.0,104710.0,0.50529503]
[1749923339050,0.02864699,104720.0,104710.0,0.53276365]
[1749923339254,0.03819599,104720.0,104710.0,0.54231335]
[1749923339465,0.03819599,104720.0,104710.0,0.38551335]
[1749923339661,0.03819599,104720.0,104710.0,0.5725136]
[1749923340086,0.03819599,104720.0,104710.0,0.5545942]
[1749923340294,0.23872992,104720.0,104710.0,0.3986145]
[1749923340571,0.21904349,104720.0,104710.0,0.1608]
[1749923340754,0.29034029,104720.0,104710.0,0.004]
[1749923340977,0.32980065,104720.0,104710.0,0.02192089]
[1749923341182,0.32980074,104720.0,104710.0,0.02192091]
[1749923341384,0.32756075,104720.0,104710.0,0.02192094]
[1749923341588,0.33652137,104720.0,104710.0,0.004]
[1749923341818,0.32756076,104720.0,104710.0,0.02192127]
[1749923342031,0.71744144,104720.0,104710.0,0.02192133]
[1749923342252,5.34016432,104720.0,104710.0,0.0219217]
[1749923342461,5.34016475,104720.0,104710.0,0.004]
[1749923342669,5.49696491,104720.0,104710.0,0.004]
[1749923342880,5.59878584,104720.0,104710.0,0.002]
[1749923343116,0.19102196,104700.0,104690.0,0.36694166]
[1749923343327,0.21012387,104700.0,104690.0,0.19113144]
[1749923343547,0.21012387,104700.0,104690.0,0.21860673]
[1749923344182,0.21012387,104700.0,104690.0,0.20068326]
[1749923344388,0.21012387,104700.0,104690.0,0.21860673]
[1749923344592,0.21012387,104700.0,104690.0,0.21860696]
[1749923344804,0.21012387,104700.0,104690.0,0.20068326]
[1749923345003,0.21012387,104700.0,104690.0,0.22815869]
[1749923345449,0.21012387,104700.0,104690.0,0.21978663]
[1749923345680,0.21012387,104700.0,104690.0,0.23771033]
[1749923345888,0.01910191,104700.0,104690.0,0.31126186]
[1749923346128,0.21012387,104700.0,104690.0,0.32081332]
[1749923346349,0.21012387,104700.0,104690.0,0.31126186]
[1749923346579,0.01910191,104700.0,104690.0,0.32081332]
[1749923346802,0.01910191,104700.0,104690.0,0.32081328]
[1749923347167,0.01910191,104700.0,104690.0,0.32081283]
[1749923347168,0.02865228,104700.0,104690.0,0.32081283]
[1749923347373,0.02865228,104700.0,104690.0,0.32081281]
[1749923347798,0.03820328,104700.0,104690.0,0.32081281]
[1749923347995,0.03820328,104700.0,104690.0,0.30288919]
[1749923348200,0.03820328,104700.0,104690.0,0.32081281]
[1749923348414,0.02865228,104700.0,104690.0,0.32081281]
[1749923348654,0.03820328,104700.0,104690.0,0.30288919]
[1749923349430,0.02865155,104700.0,104690.0,0.30288919]
[1749923349668,0.02865146,104700.0,104690.0,0.45972919]
[1749923351232,0.00955027,104700.0,104690.0,0.45972919]
[1749923351459,0.09753049,104710.0,104700.0,0.21967414]
[1749923351896,0.28853421,104710.0,104700.0,0.21012369]
[1749923352108,0.28853421,104710.0,104700.0,0.21012387]
[1749923352758,0.29053421,104710.0,104700.0,0.21012387]
[1749923352980,0.29153421,104710.0,104700.0,0.21012387]
[1749923353457,0.32383421,104710.0,104700.0,0.21012387]
[1749923354795,0.10053049,104710.0,104700.0,0.21012387]
[1749923355017,0.30108439,104710.0,104700.0,0.21967451]
[1749923355454,0.30108439,104710.0,104700.0,0.21967469]
[1749923355681,0.36865191,104700.0,104690.0,0.39987445]
[1749923355907,0.56922487,104700.0,104690.0,0.50566821]
[1749923356122,0.37820291,104700.0,104690.0,0.35837958]
[1749923356355,0.359101,104700.0,104690.0,0.41897782]
[1749923356567,0.359101,104700.0,104690.0,0.45127782]
[1749923356568,0.36865182,104700.0,104690.0,0.45127782]
[1749923357018,0.37820273,104700.0,104690.0,0.45127782]
[1749923357681,0.57877569,104700.0,104690.0,0.28488645]
[1749923357899,0.37820337,104700.0,104690.0,0.43676146]
[1749923358109,0.36865237,104700.0,104690.0,0.43676146]
[1749923358317,0.36865237,104700.0,104690.0,0.41897782]
[1749923358545,0.36865237,104700.0,104690.0,0.43678788]
[1749923358987,0.359101,104700.0,104690.0,0.43678788]
[1749923359196,0.36865182,104700.0,104690.0,0.46919947]
[1749923359417,0.02806186,104700.0,104690.0,0.46919919]
[1749923359663,0.0376125,104700.0,104690.0,0.45964782]
[1749923359895,0.03761266,104700.0,104690.0,0.46919919]
[1749923360099,0.03761266,104700.0,104690.0,0.45127782]
[1749923360348,0.04716375,104700.0,104690.0,0.45127782]
[1749923360551,0.04716375,104700.0,104690.0,0.46919951]
[1749923360983,0.03820291,104700.0,104690.0,0.46919951]
[1749923361192,0.04716375,104700.0,104690.0,0.45127782]
[1749923361429,0.04716375,104700.0,104690.0,0.46919951]
[1749923361618,0.04716375,104700.0,104690.0,0.45127782]
[1749923361843,0.23818571,104700.0,104690.0,0.40824504]
[1749923362060,0.22922487,104700.0,104690.0,0.41779695]
[1749923362302,0.2286354,104700.0,104690.0,0.21720491]
[1749923362524,0.22863542,104700.0,104690.0,0.21720491]
[1749923362981,0.21012387,104700.0,104690.0,0.19928314]
[1749923363191,0.21908479,104700.0,104690.0,0.41779701]
[1749923363436,0.21908479,104700.0,104690.0,0.05081307]
[1749923363668,5.19061692,104700.0,104690.0,0.01801307]
[1749923363888,5.18165587,104700.0,104690.0,9.123e-05]
[1749923364099,5.22823877,104700.0,104690.0,0.01801463]
[1749923364336,5.21927714,104700.0,104690.0,0.01801463]
[1749923364548,5.22823884,104700.0,104690.0,0.01801463]
[1749923364761,5.21927714,104700.0,104690.0,0.01801463]
[1749923364968,5.22923884,104700.0,104690.0,0.01801463]
[1749923365191,5.22227714,104700.0,104690.0,9.123e-05]
[1749923365408,5.22451757,104700.0,104690.0,9.123e-05]
[1749923365628,5.32123591,104700.0,104690.0,9.123e-05]
[1749923365843,5.33513286,104700.0,104690.0,0.01801476]
[1749923366090,5.4942136,104700.0,104690.0,0.01801575]
[1749923366326,5.49197312,104700.0,104690.0,0.01801597]
[1749923366799,5.49421371,104700.0,104690.0,0.01801597]
[1749923367019,5.5009354,104700.0,104690.0,9.123e-05]
[1749923367251,5.48525134,104700.0,104690.0,9.123e-05]
[1749923367485,5.49197303,104700.0,104690.0,9.123e-05]
[1749923367736,5.50093529,104700.0,104690.0,0.01801575]
[1749923367946,5.50093516,104700.0,104690.0,0.01801575]
[1749923368155,5.50093535,104700.0,104690.0,0.0180156]
[1749923368372,5.50093535,104700.0,104690.0,0.01801582]
[1749923368797,5.5009354,104700.0,104690.0,0.01801582]
[1749923369003,5.50093547,104700.0,104690.0,0.01801596]
[1749923369220,5.43949569,104700.0,104690.0,0.01801596]
[1749923369428,5.43949569,104700.0,104690.0,9.123e-05]
[1749923369878,5.43053333,104700.0,104690.0,9.123e-05]
[1749923370081,5.43051472,104700.0,104690.0,0.01796633]
[1749923370292,5.42381156,104700.0,104690.0,9.123e-05]
[1749923370500,5.43835241,104700.0,104690.0,9.123e-05]
[1749923370712,5.65074339,104700.0,104690.0,9.123e-05]
[1749923371131,5.66638479,104700.0,104690.0,9.123e-05]
[1749923371339,5.66638494,104700.0,104690.0,9.123e-05]
[1749923372187,5.65968142,104700.0,104690.0,9.123e-05]
[1749923372433,5.65744691,104700.0,104690.0,9.123e-05]
[1749923372862,5.65968142,104700.0,104690.0,9.123e-05]
[1749923373096,0.20064971,104660.0,104650.0,0.26161816]
[1749923373307,0.20064971,104660.0,104650.0,0.3674153]
[1749923373523,0.20064971,104660.0,104650.0,0.38529352]
[1749923373758,0.20064971,104660.0,104650.0,0.3674153]
[1749923373978,0.20064971,104660.0,104650.0,0.39484936]
[1749923374192,0.19109497,104660.0,104650.0,0.18467617]
[1749923374404,0.19114273,104660.0,104650.0,0.19423176]
[1749923374632,0.19114273,104660.0,104650.0,0.38534499]
[1749923374848,0.19114273,104660.0,104650.0,0.35991065]
[1749923375077,0.19114273,104660.0,104650.0,0.08087877]
[1749923375298,5.13097473,104660.0,104650.0,0.01987877]
[1749923375508,5.13097473,104660.0,104650.0,0.002]
[1749923375731,5.19209562,104660.0,104650.0,0.01988035]
[1749923375949,5.19209562,104660.0,104650.0,0.02188048]
[1749923376159,5.16923665,104660.0,104650.0,0.004]
[1749923376410,5.16923665,104660.0,104650.0,0.02188048]